fUST/lending_fUST_20250407
["ID","MTS","AMOUNT","RATE_DAILY","PERIOD"]
[357390998,1744038644896,-500.0,0.00037641,7]
[357390999,1744038644906,-500.0,0.00037641,7]
[357391000,1744038644916,-500.0,0.00037641,7]
[357391001,1744038644926,-500.0,0.00037641,7]
[357391002,1744038644935,-500.0,0.00037641,7]
[357391003,1744038644945,-649.54,0.00037641,7]
[357391004,1744038644954,-1043.86,0.00037641,7]
[357391005,1744038644964,-460.19449504,0.00037773,5]
[357391006,1744038644974,-558.08,0.00037807,7]
[357391007,1744038644984,-500.0,0.00037807,7]
[357391008,1744038644994,-500.0,0.00037807,7]
[357391009,1744038645004,-675.17,0.00037807,7]
[357391010,1744038645014,-1115.5,0.00037807,7]
[357391011,1744038645024,-500.0,0.00037807,7]
[357391012,1744038645034,-1442.05,0.00037807,7]
[357391013,1744038645043,-801.84,0.00037807,7]
[357391014,1744038645053,-500.0,0.00037807,7]
[357391015,1744038645063,-1959.76,0.00037807,7]
[357391016,1744038645073,-664.85,0.00037807,7]
[357391017,1744038645085,-4187.48,0.00037807,2]
[357391019,1744038645095,-500.0,0.00037807,7]
[357391020,1744038645104,-533.57,0.00037807,7]
[357391022,1744038645114,-2281.6,0.00037807,7]
[357391023,1744038645124,-2424.29,0.00037807,7]
[357391024,1744038645134,-3542.95,0.00037807,7]
[357391025,1744038645144,-500.0,0.00037807,7]
[357391026,1744038645154,-1200.84,0.00037807,7]
[357391027,1744038645164,-2549.49748015,0.00037842,3]
[357391028,1744038645174,-1520.77,0.00037852,7]
[357391029,1744038645183,-2457.77,0.00037852,7]
[357391030,1744038645193,-500.0,0.00037852,7]
[357391031,1744038645202,-1627.56,0.00037852,7]
[357391032,1744038645212,-1677.43,0.00037852,7]
[357391033,1744038645221,-865.63,0.00037852,7]
[357391034,1744038645231,-500.0,0.00037852,7]
[357391035,1744038645240,-3344.87,0.00037852,7]
[357391036,1744038645250,-3725.09,0.00037852,7]
[357391037,1744038645260,-500.0,0.00037852,7]
[357391038,1744038645270,-500.0,0.00037852,7]
[357391039,1744038645280,-500.0,0.00037852,7]
[357391040,1744038645290,-3545.08,0.00037852,7]
[357391041,1744038645300,-589.57,0.00037852,7]
[357391042,1744038645311,-4266.19,0.00037852,7]
[357391043,1744038645320,-3518.22,0.00037852,7]
[357391044,1744038645331,-2261.08,0.00037852,7]
[357391045,1744038645342,-383.07493811,0.00037852,7]
[357391046,1744038645352,-720.03,0.00037852,7]
[357391047,1744038645362,-1341.13,0.00037852,7]
[357391048,1744038645372,-2302.74,0.00037852,7]
[357391049,1744038645383,-500.0,0.00037852,7]
[357391050,1744038645392,-856.0,0.00037852,7]
[357391051,1744038645403,-1201.33307116,0.00037866,14]
[357391052,1744038645413,-500.0,0.00037915,7]
[357391053,1744038645422,-500.0,0.00037915,7]
[357391054,1744038645432,-500.0,0.00037915,7]
[357391055,1744038645442,-500.0,0.00037915,7]
[357391056,1744038645452,-500.0,0.00037915,7]
[357391057,1744038645461,-589.37,0.00037915,7]
[357391058,1744038645471,-549.21,0.00037915,7]
[357391059,1744038645481,-500.0,0.00037915,7]
[357391060,1744038645490,-500.0,0.00037915,7]
[357391061,1744038645500,-500.0,0.00037915,7]
[357391062,1744038645510,-500.0,0.00037915,7]
[357391063,1744038645520,-500.0,0.00037915,7]
[357391064,1744038645530,-500.0,0.00037915,7]
[357391065,1744038645540,-500.0,0.00037915,7]
[357391066,1744038645550,-500.0,0.00037915,7]
[357391067,1744038645560,-500.0,0.00037915,7]
[357391068,1744038645570,-500.0,0.00037915,7]
[357391069,1744038645584,-500.0,0.00037915,7]
[357391070,1744038645594,-500.0,0.00037915,7]
[357391071,1744038645604,-500.0,0.00037915,7]
[357391072,1744038645613,-500.0,0.00037915,7]
[357391073,1744038645623,-500.0,0.00037915,7]
[357391074,1744038645633,-649.54,0.00037915,7]
[357391075,1744038645643,-1043.86,0.00037915,7]
[357391076,1744038645652,-19584.51637782,0.00038,10]
[357391077,1744038645662,-1000.0,0.00038015,2]
[357391078,1744038645672,-2549.49748015,0.00038071,3]
[357391079,1744038645682,-558.08,0.00038081,7]
[357391080,1744038645691,-500.0,0.00038081,7]
[357391081,1744038645702,-500.0,0.00038081,7]
[357391082,1744038645712,-675.17,0.00038081,7]
[357391083,1744038645723,-1115.5,0.00038081,7]
[357391084,1744038645732,-500.0,0.00038081,7]
[357391085,1744038645742,-1442.05,0.00038081,7]
[357391086,1744038645753,-801.84,0.00038081,7]
[357391087,1744038645767,-500.0,0.00038081,7]
[357391088,1744038645776,-1959.76,0.00038081,7]
[357391089,1744038645787,-664.85,0.00038081,7]
[357391090,1744038645797,-4187.48,0.00038081,2]
[357391091,1744038645807,-500.0,0.00038081,7]
[357391092,1744038645817,-533.57,0.00038081,7]
[357391093,1744038645829,-2281.6,0.00038081,7]
[357391094,1744038645839,-2424.29,0.00038081,7]
[357391095,1744038645849,-3542.95,0.00038081,7]
[357391096,1744038645860,-500.0,0.00038081,7]
[357391097,1744038645869,-1200.84,0.00038081,7]
[357391098,1744038645880,-1520.77,0.00038126,7]
[357391099,1744038645890,-2457.77,0.00038126,7]
[357391100,1744038645900,-500.0,0.00038126,7]
[357391101,1744038645910,-1627.56,0.00038126,7]
[357391102,1744038645920,-1677.43,0.00038126,7]
[357391103,1744038645930,-865.63,0.00038126,7]
[357391104,1744038645941,-500.0,0.00038126,7]
[357391106,1744038645951,-3344.87,0.00038126,7]
[357391108,1744038645960,-3725.09,0.00038126,7]
[357391110,1744038645970,-500.0,0.00038126,7]
[357391111,1744038645980,-500.0,0.00038126,7]
[357391113,1744038645990,-500.0,0.00038126,7]
[357391115,1744038645999,-3545.08,0.00038126,7]
[357391117,1744038646009,-589.57,0.00038126,7]
[357391119,1744038646019,-4266.19,0.00038126,7]
[357391120,1744038646028,-3518.22,0.00038126,7]
[357391122,1744038646037,-2261.08,0.00038126,7]
[357391123,1744038646047,-720.03,0.00038126,7]
[357391124,1744038646056,-1341.13,0.00038126,7]
[357391126,1744038646066,-2302.74,0.00038126,7]
[357391128,1744038646079,-500.0,0.00038126,7]
[357391130,1744038646089,-856.0,0.00038126,7]
[357391132,1744038646099,-500.0,0.00038189,7]
[357391134,1744038646109,-510.67591356,0.00038189,7]
[357391136,1744038646119,-500.0,0.00038189,7]
[357391138,1744038646128,-500.0,0.00038189,7]
[357391140,1744038646139,-500.0,0.00038189,7]
[357391142,1744038646152,-589.37,0.00038189,7]
[357391144,1744038646162,-549.21,0.00038189,7]
[357391145,1744038646173,-500.0,0.00038189,7]
[357391146,1744038646183,-500.0,0.00038189,7]
[357391147,1744038646194,-500.0,0.00038189,7]
[357391148,1744038646205,-500.0,0.00038189,7]
[357391149,1744038646215,-500.0,0.00038189,7]
[357391150,1744038646225,-307.56352425,0.00038189,7]
[357391151,1744038646235,-500.0,0.00038189,7]
[357391152,1744038646245,-500.0,0.00038189,7]
[357391153,1744038646257,-500.0,0.00038189,7]
[357391154,1744038646267,-500.0,0.00038189,7]
[357391155,1744038646278,-500.0,0.00038189,7]
[357391156,1744038646288,-500.0,0.00038189,7]
[357391157,1744038646299,-508.41897172,0.00038189,7]
[357391158,1744038646309,-500.0,0.00038189,7]
[357391159,1744038646318,-649.54,0.00038189,7]
[357391160,1744038646332,-1043.86,0.00038189,7]
[357391161,1744038646342,-152.96,0.000382,31]
[357391162,1744038646352,-152.96,0.000382,31]
[357391163,1744038646362,-152.96,0.000382,31]
[357391164,1744038646372,-152.96,0.000382,31]
[357391165,1744038646382,-152.96,0.000382,31]
[357391166,1744038646392,-152.96,0.000382,31]
[357391167,1744038646402,-152.96,0.000382,31]
[357391168,1744038646412,-152.96,0.000382,31]
[357391169,1744038646422,-2549.49748015,0.00038345,3]
[357391170,1744038646432,-558.08,0.00038355,7]
[357391171,1744038646442,-500.0,0.00038355,7]
[357391172,1744038646451,-500.0,0.00038355,7]
[357391173,1744038646460,-675.17,0.00038355,7]
[357391174,1744038646470,-1115.5,0.00038355,7]
[357391175,1744038646480,-500.0,0.00038355,7]
[357391176,1744038646490,-1442.05,0.00038355,7]
[357391177,1744038646499,-801.84,0.00038355,7]
[357391178,1744038646509,-500.0,0.00038355,7]
[357391179,1744038646519,-1959.76,0.00038355,7]
[357391180,1744038646528,-664.85,0.00038355,7]
[357391181,1744038646538,-4187.48,0.00038355,2]
[357391182,1744038646548,-500.0,0.00038355,7]
[357391183,1744038646558,-533.57,0.00038355,7]
[357391184,1744038646568,-2281.6,0.00038355,7]
[357391185,1744038646582,-2424.29,0.00038355,7]
[357391186,1744038646592,-3542.95,0.00038355,7]
[357391187,1744038646601,-500.0,0.00038355,7]
[357391188,1744038646611,-1200.84,0.00038355,7]
[357391189,1744038646620,-1000.0,0.00038356,7]
[357391190,1744038646630,-473.00564785,0.00038356,7]
[357391238,1744038647169,-320.3250005,0.00038356,7]
[357391240,1744038647182,-206.66935165,0.00038356,7]
[357391242,1744038647192,-1000.0,0.00038356,7]
[357391244,1744038647202,-1000.0,0.00038356,7]
[357391246,1744038647213,-1000.0,0.00038356,7]
[357391248,1744038647224,-1000.0,0.00038356,7]
[357391250,1744038647234,-1000.0,0.00038356,7]
[357391252,1744038647245,-1000.0,0.00038356,7]
[357391254,1744038647256,-1000.0,0.00038356,7]
[357391256,1744038647267,-1000.0,0.00038356,7]
[357391258,1744038647277,-556.85859032,0.000384,7]
[357391264,1744038647323,-963.91140968,0.000384,7]
[357391266,1744038647339,-2457.77,0.000384,7]
[357391267,1744038647349,-754.47095132,0.000384,7]
[357391298,1744038647723,-712.68,0.00035616,7]
[357391299,1744038647733,-23.10660761,0.0003589,7]
[357391339,1744038648294,-689.57339239,0.0003589,7]
[357391341,1744038648305,-712.68,0.00036164,7]
[357391343,1744038648315,-712.68,0.00036438,7]
[357391345,1744038648327,-712.68,0.00036712,7]
[357391347,1744038648343,-712.68,0.00036986,7]
[357391349,1744038648355,-712.68,0.0003726,7]
[357391351,1744038648367,-712.68,0.00037534,7]
[357391353,1744038648378,-712.68,0.00037808,7]
[357391355,1744038648390,-712.68,0.00038082,7]
[357391357,1744038648401,-712.68,0.00038356,7]
[357391359,1744038648412,-873.08904868,0.000384,7]
[357391361,1744038648422,-1677.43,0.000384,7]
[357391363,1744038648433,-865.63,0.000384,7]
[357391365,1744038648443,-500.0,0.000384,7]
[357391367,1744038648454,-3344.87,0.000384,7]
[357391369,1744038648465,-3644.49708885,0.000384,7]
[357391396,1744038648805,-80.59291115,0.000384,7]
[357391398,1744038648816,-500.0,0.000384,7]
[357391400,1744038648826,-500.0,0.000384,7]
[357391402,1744038648840,-389.20708885,0.000384,7]
[357391404,1744038648854,-110.79291115,0.000384,7]
[357391406,1744038648865,-3545.08,0.000384,7]
[357391409,1744038648876,-589.57,0.000384,7]
[357391411,1744038648886,-3458.47176531,0.000384,7]
[357391413,1744038648899,-807.71823469,0.000384,7]
[357391415,1744038648909,-3518.22,0.000384,7]
[357391417,1744038648919,-2261.08,0.000384,7]
[357391419,1744038648930,-720.03,0.000384,7]
[357391421,1744038648940,-315.45320426,0.000384,7]
[357391423,1744038648952,-904.59999994,0.000384,7]
[357391426,1744038648965,-121.0767958,0.000384,7]
[357391428,1744038648975,-2302.74,0.000384,7]
[357391430,1744038648986,-500.0,0.000384,7]
[357391432,1744038648996,-856.0,0.000384,7]
[357391434,1744038649008,-200.0,0.00038428,2]
[357391436,1744038649017,-560.35,0.00038451,7]
[357391438,1744038649027,-579.7,0.00038451,7]
[357391440,1744038649036,-1159.75,0.00038451,7]
[357391442,1744038649046,-598.58,0.00038451,7]
[357391444,1744038649056,-500.0,0.00038451,7]
[357391446,1744038649066,-500.0,0.00038451,7]
[357391448,1744038649076,-500.0,0.00038451,7]
[357391450,1744038649090,-500.0,0.00038451,7]
[357391452,1744038649100,-500.0,0.00038451,7]
[357391454,1744038649111,-500.0,0.00038451,7]
[357391456,1744038649121,-711.57,0.00038451,7]
[357391458,1744038649131,-265.2550367,0.00038452,5]
[357391460,1744038649143,-338.2648633,0.00038452,5]
[357391462,1744038649153,-500.0,0.00038452,5]
[357391464,1744038649163,-417.2351367,0.00038452,5]
[357391466,1744038649176,-84.88204221,0.00038452,5]
[357391469,1744038649186,-500.0,0.00038452,5]
[357391471,1744038649196,-500.0,0.00038452,5]
[357391473,1744038649207,-583.3180547,0.00038452,5]
[357391475,1744038649218,-2549.49748015,0.00038453,3]
[357391477,1744038649228,-327.30242301,0.00038463,7]
[357391744,1744039680322,7651.08507908,0.00016,2]
[357391749,1744039709119,858.04,0.00010959,2]
[357391750,1744039719881,715.04,0.00010959,2]
[357391752,1744039726498,571.93177581,0.000149,2]
[357391753,1744039730525,646.94,0.00010959,2]
[357391754,1744039730680,16000.0,0.00015,2]
[357391755,1744039731098,462.02802794,0.0001525,2]
[357391762,1744039741212,539.11,0.00010959,2]
[357391776,1744039751663,449.26,0.00010959,2]
[357391784,1744039762335,374.38,0.00010959,2]
[357391792,1744039772893,1885.44,0.00010959,2]
[357391793,1744039783678,1571.2,0.00010959,2]
[357391794,1744039785687,216689.32076619,0.0003,10]
[357391796,1744039794220,1309.34,0.00010959,2]
[357391802,1744039804799,1091.11,0.00010959,2]
[357391803,1744039815645,909.26,0.00010959,2]
[357391804,1744039826084,757.72,0.00010959,2]
[357391862,1744039836677,631.43,0.00010959,2]
[357391877,1744039838879,-12308.04564578,0.00017,2]
[357391879,1744039838892,-16579.87750803,0.00017,2]
[357391881,1744039838901,-1534.23735502,0.00017899,2]
[357391883,1744039838911,-559.31584652,0.00017999,2]
[357391885,1744039838921,-500.0,0.00017999,2]
[357391887,1744039838931,-500.0,0.00017999,2]
[357391889,1744039838940,-468.1075314,0.00017999,2]
[357391893,1744039838968,-31.8924686,0.00017999,2]
[357391895,1744039838980,-474.16897421,0.00017999,2]
[357391897,1744039838990,-500.0,0.00017999,2]
[357391899,1744039839001,-338.41982523,0.00017999,2]
[357391901,1744039839011,-500.0,0.00017999,2]
[357391904,1744039839021,-500.0,0.00017999,2]
[357391906,1744039839031,-500.0,0.00017999,2]
[357391908,1744039839046,-500.0,0.00017999,2]
[357391909,1744039839057,-500.0,0.00017999,2]
[357391911,1744039839067,-323.6192069,0.00017999,2]
[357391912,1744039839104,-176.3807931,0.00017999,2]
[357391914,1744039839115,-500.0,0.00017999,2]
[357391915,1744039839125,-500.0,0.00017999,2]
[357391917,1744039839135,-500.0,0.00017999,2]
[357391918,1744039839145,-500.0,0.00017999,2]
[357391919,1744039839157,-500.0,0.00017999,2]
[357391920,1744039839166,-500.0,0.00017999,2]
[357391921,1744039839178,-500.0,0.00017999,2]
[357391922,1744039839188,-500.0,0.00017999,2]
[357391923,1744039839199,-500.0,0.00017999,2]
[357391924,1744039839209,-500.0,0.00017999,2]
[357391925,1744039839219,-500.0,0.00017999,2]
[357391926,1744039839230,-500.0,0.00017999,2]
[357391927,1744039839240,-500.0,0.00017999,2]
[357391928,1744039839251,-144277.23294835,0.00018,2]
[357391929,1744039839261,-500.0,0.00018,2]
[357391930,1744039839271,-500.0,0.00018,2]
[357391931,1744039839281,-500.0,0.00018,2]
[357391932,1744039839293,-500.0,0.00018,2]
[357391933,1744039839303,-500.0,0.00018,2]
[357391934,1744039839314,-501.06140268,0.00018,2]
[357391935,1744039839324,-500.0,0.00018,2]
[357391936,1744039839334,-475.90414216,0.00018,2]
[357391937,1744039839344,-519.65496878,0.00018,2]
[357391938,1744039839355,-479.4951023,0.00018,2]
[357391939,1744039839365,-500.0,0.00018,2]
[357391940,1744039839376,-1534.23735502,0.0002207,2]
[357391941,1744039839387,-1115.52486347,0.00023479,2]
[357391942,1744039839397,-500.0,0.00023479,2]
[357391943,1744039839407,-1021.00103121,0.00023479,2]
[357391944,1744039839417,-1000.0,0.00023479,2]
[357391945,1744039839428,-500.0,0.00024658,2]
[357391946,1744039839439,-500.0,0.00024658,2]
[357391947,1744039839450,-500.0,0.00024658,2]
[357391948,1744039839461,-500.0,0.00024658,2]
[357391949,1744039839471,-500.0,0.00024658,2]
[357391950,1744039839482,-500.0,0.00024658,2]
[357391951,1744039839493,-600.0,0.00024658,2]
[357391952,1744039839503,-500.0,0.00024658,2]
[357391953,1744039839515,-503.86053669,0.00024658,2]
[357391954,1744039839524,-3221.31214022,0.000249,2]
[357391955,1744039839538,-1314.19888793,0.000259,6]
[357391956,1744039839548,-1534.23735502,0.00026241,2]
[357391957,1744039839558,-1314.19888771,0.00027176,7]
[357391958,1744039839569,-1314.19888771,0.00028452,8]
[357391959,1744039839579,-1314.19888771,0.00029728,8]
[357391960,1744039839590,-156.12644,0.0003006,8]
[357391961,1744039839605,-174.956538,0.0003006,8]
[357391962,1744039839616,-1534.23735502,0.00030412,2]
[357391963,1744039839627,-1314.19888771,0.00031003,9]
[357391964,1744039839638,-11853.7782264,0.00031514,2]
[357391965,1744039839648,-347.2353133,0.00031595,2]
[357391966,1744039839659,-489.417603,0.00031769,2]
[357391967,1744039839670,-11673.6774128,0.00031769,2]
[357391968,1744039839680,-156.12644,0.00032242,2]
[357391969,1744039839692,-174.956538,0.00032242,2]
[357391970,1744039839702,-1314.19888771,0.00032279,10]
[357391971,1744039839713,-616.97411503,0.00032776,2]
[357391972,1744039839723,-1610.65607011,0.00032855,2]
[357391973,1744039839734,-200.0,0.00032855,2]
[357391974,1744039839744,-18617.14309746,0.00032865,2]
[357391975,1744039839755,-8053.28035055,0.00032866,2]
[357391976,1744039839765,-500.0,0.00032876,7]
[357391977,1744039839776,-501.11,0.00032876,7]
[357391978,1744039839788,-652.85,0.00032876,7]
[357391979,1744039839799,-500.0,0.00032876,7]
[357391980,1744039839809,-957.15,0.00032876,7]
[357391981,1744039839819,-500.0,0.00032876,7]
[357391982,1744039839830,-500.0,0.00032876,7]
[357391983,1744039839840,-1233.14,0.00032876,7]
[357391984,1744039839851,-500.0,0.00032876,7]
[357391985,1744039839861,-500.0,0.00032876,7]
[357391986,1744039839871,-500.0,0.00032876,7]
[357391987,1744039839882,-500.0,0.00032876,7]
[357391988,1744039839892,-514.94987429,0.00032876,7]
[357391989,1744039839902,-500.0,0.00032876,7]
[357391990,1744039839913,-500.0,0.00032876,7]
[357391991,1744039839923,-968.95,0.00032876,7]
[357391992,1744039839933,-727.37,0.00032876,7]
[357391993,1744039839943,-582.28,0.00032876,7]
[357391994,1744039839953,-1092.34,0.00032876,7]
[357391995,1744039839963,-500.0,0.00032876,7]
[357391996,1744039839973,-500.0,0.00032876,7]
[357391997,1744039839983,-500.0,0.00032876,7]
[357391998,1744039839994,-875.75,0.00032876,7]
[357391999,1744039840004,-500.0,0.00032876,7]
[357392000,1744039840015,-590.88,0.00032876,7]
[357392001,1744039840025,-500.0,0.00032876,7]
[357392002,1744039840042,-500.0,0.00032876,7]
[357392003,1744039840053,-608.59,0.00032876,7]
[357392004,1744039840064,-500.0,0.00032876,7]
[357392005,1744039840074,-500.0,0.00032876,7]
[357392006,1744039840085,-500.0,0.00032876,7]
[357392007,1744039840096,-1361.48,0.00032876,7]
[357392008,1744039840106,-500.0,0.00032876,7]
[357392009,1744039840118,-500.0,0.00032876,7]
[357392010,1744039840130,-500.0,0.00032876,7]
[357392011,1744039840142,-500.0,0.00032876,7]
[357392012,1744039840153,-1237.08,0.00032876,7]
[357392013,1744039840163,-481.53185672,0.00032876,7]
[357392014,1744039840176,-1007.07,0.00032876,7]
[357392015,1744039840186,-500.0,0.00032876,7]
[357392016,1744039840197,-500.0,0.00032876,7]
[357392017,1744039840209,-500.0,0.00032876,7]
[357392018,1744039840220,-500.0,0.00032876,7]
[357392019,1744039840231,-500.0,0.00032876,7]
[357392020,1744039840242,-734.0,0.00032876,7]
[357392021,1744039840253,-500.0,0.00032876,7]
[357392022,1744039840263,-500.4540067,0.00032876,7]
[357392023,1744039840274,-500.0,0.00032876,7]
[357392024,1744039840284,-500.0,0.00032876,7]
[357392025,1744039840301,-500.0,0.00032876,7]
[357392026,1744039840312,-500.0,0.00032876,7]
[357392027,1744039840323,-500.0,0.00032876,7]
[357392028,1744039840335,-658.57,0.00032876,7]
[357392029,1744039840346,-500.0,0.00032876,7]
[357392030,1744039840356,-500.0,0.00032876,7]
[357392031,1744039840367,-500.0,0.00032876,7]
[357392032,1744039840378,-500.0,0.00032876,7]
[357392033,1744039840389,-500.92746142,0.00032876,7]
[357392034,1744039840399,-1347.65,0.00032876,7]
[357392035,1744039840410,-500.0,0.00032876,7]
[357392036,1744039840421,-563.57577433,0.00032876,7]
[357392037,1744039840432,-500.0,0.00032876,7]
[357392038,1744039840442,-1385.1,0.00032876,7]
[357392039,1744039840452,-500.0,0.00032876,7]
[357392040,1744039840462,-1011.57,0.00032876,7]
[357392041,1744039840472,-336.72266742,0.00032876,7]
[357392042,1744039840483,-500.0,0.00032876,7]
[357392043,1744039840494,-461.28221562,0.00032876,7]
[357392044,1744039840504,-500.0,0.00032876,7]
[357392045,1744039840514,-500.0,0.00032876,7]
[357392046,1744039840525,-824.0,0.00032876,7]
[357392047,1744039840535,-513.93068889,0.00032876,7]
[357392048,1744039840553,-1622.08,0.00032876,7]
[357392049,1744039840563,-500.0,0.00032876,7]
[357392050,1744039840573,-500.0,0.00032876,7]
[357392051,1744039840585,-500.0,0.00032876,7]
[357392052,1744039840596,-880.55,0.00032876,7]
[357392053,1744039840606,-500.0,0.00032876,7]
[357392054,1744039840616,-1016.55,0.00032876,120]
[357392055,1744039840627,-500.0,0.00032876,7]
[357392057,1744039840638,-500.0,0.00032876,7]
[357392058,1744039840648,-2221.69,0.00032876,7]
[357392060,1744039840658,-500.0,0.00032876,7]
[357392062,1744039840669,-717.32,0.00032876,7]
[357392063,1744039840679,-691.49,0.00032876,7]
[357392064,1744039840689,-999.24,0.00032876,7]
[357392065,1744039840699,-500.0,0.00032876,7]
[357392066,1744039840709,-2958.07,0.00032876,7]
[357392067,1744039840719,-559.0,0.00032876,7]
[357392068,1744039840730,-505.25880529,0.00032876,7]
[357392069,1744039840740,-500.0,0.00032876,7]
[357392070,1744039840750,-500.0,0.00032876,7]
[357392071,1744039840760,-616.89,0.00032876,7]
[357392072,1744039840771,-511.14517915,0.00032876,7]
[357392073,1744039840782,-500.0,0.00032876,7]
[357392074,1744039840795,-1882.8,0.00032876,7]
[357392075,1744039840806,-500.0,0.00032876,7]
[357392076,1744039840817,-1667.7,0.00032876,7]
[357392077,1744039840828,-1050.47,0.00032876,7]
[357392078,1744039840839,-688.18,0.00032876,7]
[357392079,1744039840850,-500.0,0.00032876,7]
[357392080,1744039840860,-500.0,0.00032876,7]
[357392081,1744039840871,-500.0,0.00032876,7]
[357392082,1744039840882,-500.0,0.00032876,7]
[357392083,1744039840892,-503.33388567,0.00032876,7]
[357392084,1744039840902,-500.0,0.00032876,7]
[357392085,1744039840912,-232.19330383,0.00032876,7]
[357392086,1744039840922,-998.23,0.00032876,7]
[357392087,1744039840932,-2098.57,0.00032876,7]
[357392088,1744039840942,-511.12,0.00032876,7]
[357392089,1744039840952,-691.07,0.00032876,7]
[357392090,1744039840962,-997.27,0.00032876,7]
[357392091,1744039840984,-930.52,0.00032876,7]
[357392092,1744039840994,-160.0,0.00032876,7]
[357392093,1744039841004,-500.0,0.00032876,7]
[357392094,1744039841014,-825.84,0.00032876,7]
[357392095,1744039841025,-13234.49,0.00032876,7]
[357392096,1744039841035,-500.0,0.00032876,7]
[357392097,1744039841049,-3748.75,0.00032876,7]
[357392099,1744039841059,-500.0,0.00032876,7]
[357392101,1744039841069,-2219.3,0.00032876,7]
[357392103,1744039841080,-505.44,0.00032876,7]
[357392105,1744039841090,-1916.9,0.00032876,7]
[357392107,1744039841100,-1076.04,0.00032876,7]
[357392109,1744039841111,-4216.97,0.00032876,7]
[357392111,1744039841121,-500.0,0.00032876,7]
[357392113,1744039841134,-2052.31,0.00032876,7]
[357392115,1744039841145,-2903.61,0.00032876,7]
[357392117,1744039841154,-871.3,0.00032876,7]
[357392119,1744039841165,-500.0,0.00032876,7]
[357392121,1744039841175,-3362.26,0.00032876,7]
[357392123,1744039841185,-500.0,0.00032876,7]
[357392125,1744039841195,-500.0,0.00032876,7]
[357392127,1744039841206,-949.41,0.00032876,7]
[357392129,1744039841219,-500.0,0.00032876,7]
[357392131,1744039841229,-6398.08,0.00032876,7]
[357392134,1744039841239,-6398.08,0.00032876,7]
[357392136,1744039841249,-6398.08,0.00032876,7]
[357392138,1744039841260,-6398.08,0.00032876,7]
[357392140,1744039841269,-500.0,0.00032876,7]
[357392142,1744039841281,-500.0,0.00032876,7]
[357392144,1744039841293,-500.0,0.00032876,7]
[357392146,1744039841304,-500.0,0.00032876,7]
[357392148,1744039841314,-500.0,0.00032876,7]
[357392150,1744039841324,-940.17,0.00032876,7]
[357392152,1744039841334,-554.13463457,0.00032876,7]
[357392154,1744039841345,-1861.99,0.00032876,7]
[357392156,1744039841355,-500.0,0.00032876,7]
[357392158,1744039841365,-577.09,0.00032876,7]
[357392160,1744039841375,-500.0,0.00032876,7]
[357392162,1744039841386,-500.0,0.00032876,7]
[357392164,1744039841396,-500.0,0.00032876,7]
[357392166,1744039841406,-1262.51,0.00032876,7]
[357392169,1744039841416,-500.0,0.00032876,7]
[357392171,1744039841427,-500.0,0.00032876,7]
[357392173,1744039841437,-651.9,0.00032876,7]
[357392175,1744039841447,-3101.83,0.00032876,7]
[357392177,1744039841457,-500.0,0.00032876,7]